[Event "SVK ECo-C Extraliga 2021-22"]
[Site "Slovakia"]
[Date "2022.06.10"]
[Round "9.8"]
[White "Holly, Andrej"]
[Black "Zambor, Norbert"]
[Result "1-0"]
[ECO "B33"]
[WhiteElo "2214"]
[BlackElo "2302"]
[Annotator "TA"]
[PlyCount "77"]
[EventDate "2021.10.21"]
[EventType "team-tourn"]
[EventCountry "SVK"]
[SourceTitle "playchess.com"]
[Source "ChessBase"]
[SourceQuality "1"]
[TimeControl "40/5400+30:1800+30"]

{[%evp 20,77,23,15,8,7,15,1,12,11,17,24,34,37,89,92,94,50,55,88,103,108,97,96,96,94,103,62,84,57,58,47,57,43,60,22,19,23,206,205,208,205,310,310,316,308,281,278,400,388,400,400,400,400,488,425,645,645,637,625]} 1. e4 {[%emt 0:00:16]} c5 {[%emt 0:00:33]} 2. Nf3 {[%emt 0:00:05][%cal Bg1f3,Bf3d4,Bd4b5,Bb5a3,Ba3c2][%mdl 32]} Nc6 {[%emt 0:00:09]} 3. d4 {[%emt 0:00:18]} cxd4 {[%emt 0:00:11]} 4. Nxd4 {[%emt 0:00:06]} Nf6 {[%emt 0:01:18]} 5. Nc3 {[%emt 0:00:21]} e5 {[%emt 0:00:11]} 6. Ndb5 {[%emt 0:00:37]} d6 {[%emt 0:00:09]} 7. Bg5 {[%emt 0:01:33]} a6 {[%emt 0:00:08]} 8. Na3 {[%emt 0:00:05]} b5 {[%emt 0:00:13][%cal Bb7b5,Bb5b4][%mdl 32]} 9. Nd5 {[%emt 0:00:36]} Be7 {[%emt 0:00:10]} 10. Bxf6 {[%emt 0:02:07]} Bxf6 {[%emt 0:01:02]} 11. c4 {[%emt 0:03:10]} b4 {[%emt 0:03:42] B33: Sicilian: Pelikan and Sveshnikov Variations.} 12. Nc2 {[%emt 0:01:33]} O-O {[%emt 0:04:24] is more profitable than 12...a5 at the moment.} 13. g3 {[%emt 0:00:37]} Bg5 {[%emt 0:05:56] The position is equal.} 14. Bg2 {[%emt 0:00:46]} ({Of course not} 14. Ndxb4 Nxb4 15. Nxb4 Qb6 $15) 14... Be6 {[%emt 0:00:48]} 15. O-O {[%emt 0:02:43]} Qa5 {[%emt 0:00:50]} 16. b3 {[%emt 0:10:29]} Qc5 {[%emt 0:10:09] [#]} (16... Rfb8 $14) 17. Nc7 $1 $16 {[%emt 0:11:10] Pair of Knights!} Ra7 {[%emt 0:32:29]} 18. Nxe6 {[%emt 0:08:09]} fxe6 {[%emt 0:00:07]} 19. Qg4 {[%emt 0:00:40][%csl LRe6,LRg5] [#]} Bd8 $146 ({Predecessor:} 19... Raf7 20. Qxe6 Nd8 21. Qd5 Qxd5 22. exd5 a5 23. a3 Bd2 24. axb4 axb4 25. Ne1 Bxe1 26. Raxe1 {½-½ (44) Draskovic,D (2016)-Vujovic,S (2167) Budva 2021}) 20. Qxe6+ {[%emt 0:01:49]} Raf7 {[%emt 0:03:29]} 21. Rad1 {[%emt 0:04:57]} Bc7 {[%emt 0:10:27]} 22. Rd2 {[%emt 0:08:34]} Kh8 {[%emt 0:01:46]} 23. h4 {[%emt 0:03:44]} Rf6 {[%emt 0:05:56]} 24. Qd5 {[%emt 0:04:12]} Bb6 {[%emt 0:00:27]} 25. Kh2 {[%emt 0:09:54]} a5 {[%emt 0:06:00]} 26. Qd3 {[%emt 0:07:48]} a4 ({Weaker is} 26... Rxf2 27. Rfxf2 Rxf2 28. Rxf2 Qxf2 29. Qxd6 $16) 27. bxa4 {[%emt 0:03:17]} Qa5 $1 {[%emt 0:05:22]} 28. Qd5 {[%emt 0:01:59]} Qxa4 {[%emt 0:01:53] [#] This move loses the game for Black.} (28... Qa8 $11 {and Black stays safe.}) 29. Qb5 $18 {[%emt 0:00:39]} Qxb5 {[%emt 0:05:37]} 30. cxb5 {[%emt 0:00:01]} Nd4 {[%emt 0:01:24]} (30... Na5 {was called for.} 31. Nxb4 Bxf2) 31. Nxb4 {[%emt 0:00:30]} Bc5 {[%emt 0:00:38]} 32. Nd5 {[%emt 0:01:07]} R6f7 {[%emt 0:00:28]} 33. b6 {[%emt 0:02:46]} Rb7 {[%emt 0:00:30]} (33... Ra8 $142 34. f4 h6) 34. a4 {[%emt 0:00:35]} Ra8 {[%emt 0:00:22]} 35. Ra2 {[%emt 0:01:04]} Nc6 {[%emt 0:00:41]} 36. Rb1 {[%emt 0:01:28][%cal Bf1b1,Bb1b5,Bb5a5][%mdl 32] Prevents Nb4.} Kg8 {[%emt 0:00:18]} 37. Rb5 {[%emt 0:01:56] White is clearly winning.} Na5 {[%emt 0:00:12]} (37... Ra5 $142 38. Bh3 Kf7) 38. Nc7 {[%emt 0:00:57]} Rf8 {[%emt 0:01:00]} 39. Rxa5 {[%emt 0:00:31] Weighted Error Value: White=0.05 (flawless) /Black=0.34} 1-0

[Event "SVK ECo-C Extraliga 2021-22"]
[Site "Slovakia"]
[Date "2022.06.10"]
[Round "9.8"]
[White "Bury, Rastislav"]
[Black "Bochnicka Vladimir ml."]
[Result "0-1"]
[ECO "A89"]
[WhiteElo "2118"]
[BlackElo "2262"]
[Annotator "TA"]
[PlyCount "97"]
[EventDate "2021.10.21"]
[EventType "team-tourn"]
[EventCountry "SVK"]
[SourceTitle "playchess.com"]
[Source "ChessBase"]
[SourceQuality "1"]
[TimeControl "40/5400+30:1800+30"]

{[%evp 16,97,15,8,18,-14,-9,-11,-12,-8,-18,-11,-7,-63,-37,-84,-85,-83,-89,-88,-79,-150,-153,-159,-106,-102,-96,-104,-102,-126,-123,-140,-101,-241,-242,-239,-148,-155,-150,-208,-179,-197,-243,-243,-243,-243,-243,-243,-242,-234,-224,-224,-209,-242,-233,-224,-224,-453,-442,-471,-456,-624,-145,-412,-360,-689,-387,-638,4133,-586,1933,-583,1374,233,4133,-29989,1472,-7007,-4714,-1202,-883,-4133,-16,-1592]} 1. d4 {[%emt 0:00:05]} f5 {[%emt 0:00:10]} 2. Nf3 {[%emt 0:00:44]} Nf6 {[%emt 0:00:10]} 3. g3 {[%emt 0:00:05]} g6 {[%emt 0:00:15]} 4. Bg2 {[%emt 0:00:05]} Bg7 {[%emt 0:00:08]} 5. O-O {[%emt 0:00:05]} O-O {[%emt 0:00:19]} 6. c4 {[%emt 0:01:34]} d6 {[%emt 0:00:13]} 7. Nc3 {[%emt 0:00:37]} Nc6 {[%emt 0:00:46] 7...c6 is the modern continuation.} 8. b3 {[%emt 0:08:42]} e5 {[%emt 0:05:01]} 9. dxe5 {[%emt 0:00:30]} dxe5 {[%emt 0:00:14] A89: Dutch Defence: Leningrad System: 5 Nf3 0-0 6 0-0 d6 7 Nc3 Nc6.} 10. e4 {[%emt 0:06:04]} Qxd1 {[%emt 0:16:31]} 11. Rxd1 {[%emt 0:00:33] [#]} Nxe4 $146 {[%emt 0:00:29]} ({Predecessor:} 11... Be6 12. Ng5 Bf7 13. Ba3 Rfd8 14. Nb5 Rxd1+ 15. Rxd1 Rc8 16. Nxf7 Kxf7 17. exf5 gxf5 18. Bxc6 bxc6 19. Nxa7 {½-½ (28) Tarasova,V (2226)-Chambers,C Chess.com INT 2021}) 12. Nxe4 {[%emt 0:00:37]} fxe4 {[%emt 0:00:06]} 13. Ng5 {[%emt 0:01:55]} Bg4 {[%emt 0:02:25]} 14. Rd2 {[%emt 0:10:11]} (14. Rd5 $11) 14... Nd4 {[%emt 0:08:55]} (14... Bh6 $5 {[%cal Rh6g5]} 15. h4 Bxg5 16. hxg5 Bf3 $15) 15. Nxe4 {[%emt 0:00:30] [#]} (15. Ba3 $15 {should be considered.}) 15... Ne2+ $1 $17 {[%emt 0:11:27]} 16. Rxe2 {[%emt 0:05:42]} Bxe2 {[%emt 0:00:12]} 17. Ba3 {[%emt 0:00:11]} Rfd8 {[%emt 0:11:10]} 18. Nc5 {[%emt 0:04:52]} (18. Re1 $142 Bg4 19. Be7) 18... e4 {[%emt 0:04:35]} 19. Re1 {[%emt 0:05:05] [#]} Bf3 {[%emt 0:00:57]} ({Black should try} 19... Rd2 $1 {[%cal Rd2a2]} 20. Bxe4 Rxa2 21. Bd5+ Kh8 22. Nxb7 c6 23. Bxc6 Bc3 24. Rxe2 (24. Rc1 $2 Bd2 $19) 24... Rxe2) 20. Nxe4 {[%emt 0:00:44]} Bxg2 {[%emt 0:02:25]} 21. Kxg2 {[%emt 0:07:45]} a5 {[%emt 0:02:22][%cal Ba7a5,Ba5a4][%mdl 32]} 22. Re2 {[%emt 0:05:08]} a4 {[%emt 0:01:59]} 23. Be7 {[%emt 0:02:01]} Rd4 {[%emt 0:05:47] Hoping for ...Re8.} 24. Nc5 {[%emt 0:01:32]} (24. Bg5 $17) 24... axb3 {[%emt 0:00:46]} 25. axb3 {[%emt 0:00:09]} b6 {[%emt 0:05:08]} 26. Ne6 {[%emt 0:04:48]} Rd7 {[%emt 0:00:21]} 27. Bg5 {[%emt 0:01:24]} (27. Nxg7 $17 Kxg7 28. Re3) 27... Re8 $19 {[%emt 0:03:28]} 28. Re3 {[%emt 0:01:16]} Kf7 {[%emt 0:02:08]} 29. Nxg7 {[%emt 0:01:52]} Rxe3 {[%emt 0:00:12]} 30. Bxe3 {[%emt 0:00:14]} Kxg7 {[%emt 0:00:07][%mdl 4096] Endgame KR-KB} 31. b4 {[%emt 0:00:26]} Kf6 {[%emt 0:01:12]} 32. Kf3 {[%emt 0:02:07]} Ke5 {[%emt 0:00:36]} 33. Ke2 {[%emt 0:00:24] Inhibits Rd3.} Kf5 {[%emt 0:02:07]} 34. f3 {[%emt 0:00:30]} Rd8 {[%emt 0:00:18]} 35. Bf4 {[%emt 0:00:22]} c6 {[%emt 0:01:09] And now ...Rd4 would win.} 36. Bc7 $2 {[%emt 0:02:42]} (36. Be3) 36... Rd4 {[%emt 0:00:42]} 37. g4+ {[%emt 0:03:16]} Ke6 {[%emt 0:00:21]} 38. c5 {[%emt 0:01:08]} g5 $2 {[%emt 0:01:58]} (38... b5 $19 {is more deadly.} 39. Ba5 h5) 39. Ke3 $2 {[%emt 0:00:00][%mdl 8192]} (39. Bxb6 $17 Rxb4 40. Bd8) 39... Kd5 {[%emt 0:00:27] Threatens to win with ...b5.} 40. h3 $2 {[%emt 0:00:06]} (40. Bxb6 Rxb4 41. Bd8) 40... h6 {[%emt 0:00:15] aiming for ...b5.} 41. Kf2 $2 {[%emt 0:30:32]} (41. Bxb6 Rxb4 42. Kf2) 41... Rd1 $4 {[%emt 0:30:59][%mdl 8192]} (41... b5 $19 42. Ba5 Rd3) 42. Kg3 $4 {[%emt 0:00:24][%mdl 8192]} (42. cxb6 $18 Rb1 43. b7 Rxb4 44. b8=Q Rxb8 45. Bxb8) 42... Kd4 $4 {[%emt 0:00:29][%mdl 8192]} (42... b5 $19 43. h4 Rg1+ 44. Kh2 Rb1 45. hxg5 hxg5) 43. h4 $4 {[%emt 0:00:28][%mdl 8192]} (43. cxb6 $18 {is the narrow road to win. b7 is the strong threat.} Rg1+ 44. Kf2) 43... Ke3 $4 {[%emt 0:00:20][%mdl 8192]} (43... b5 $19 44. hxg5 hxg5) 44. hxg5 $2 {[%emt 0:00:09]} (44. cxb6 Rf1 45. b7 Rxf3+ 46. Kg2) 44... hxg5 $2 {[%emt 0:00:06]} (44... Rg1+ $2 45. Kh2 hxg5 46. cxb6 $18) (44... bxc5 45. gxh6 cxb4) 45. Bd8 $4 {[%emt 0:00:14][%mdl 8192]} Re1 $4 {[%emt 0:00:19][%mdl 8192]} (45... Rxd8 {and life is good for Black.} 46. cxb6 Rb8 47. Kg2 Rxb6 48. f4 gxf4 49. Kh2 f3 50. Kg3 f2 51. Kh4 f1=Q 52. Kh5 c5 53. bxc5 Qh1+ 54. Kg5 Qh6+ 55. Kf5 Qf6#) 46. Bc7 $4 {[%emt 0:00:30][%mdl 8192]} (46. Bxg5+ $18 Kd3 47. cxb6) 46... Rg1+ {[%emt 0:00:30]} 47. Kh2 {[%emt 0:00:26]} Rb1 {[%emt 0:00:08]} 48. Kg3 {[%emt 0:00:09]} Ke2 $2 {[%emt 0:00:39]} (48... b5 $19 {( -> ...Rg1+)} 49. Kg2 Rb2+ 50. Kg3 Rf2) 49. Bd8 $2 {[%emt 0:00:04][%mdl 8192] Black used his chance.  Weighted Error Value: White=1.40/Black=0.73} (49. cxb6 $11 Rxb4 50. Bd8) 0-1

[Event "SVK ECo-C Extraliga 2021-22"]
[Site "Slovakia"]
[Date "2022.06.10"]
[Round "9.8"]
[White "Tauber, Marek"]
[Black "Pcola, Jaroslav"]
[Result "1-0"]
[ECO "C07"]
[WhiteElo "2050"]
[BlackElo "2041"]
[Annotator "TA"]
[PlyCount "109"]
[EventDate "2021.10.21"]
[EventType "team-tourn"]
[EventCountry "SVK"]
[SourceTitle "playchess.com"]
[Source "ChessBase"]
[SourceQuality "1"]
[TimeControl "40/5400+30:1800+30"]

{[%evp 22,109,27,8,10,6,6,6,15,0,41,33,35,22,24,22,22,15,52,56,52,52,52,50,50,51,58,57,56,56,57,38,54,44,49,23,26,19,25,8,52,11,44,15,15,15,15,12,12,12,21,21,21,21,21,21,21,0,8,8,627,626,575,584,574,46,591,566,579,566,320,320,739,696,2322,2201,29964,29968,29976,29977,29977,29978,29977,29978,29979,29980,29979,29980,29979,29980]} 1. e4 {[%emt 0:00:20]} e6 {[%emt 0:00:09]} 2. d4 {[%emt 0:00:28]} d5 {[%emt 0:00:08]} 3. Nd2 {[%emt 0:01:30]} c5 {[%emt 0:00:45]} 4. Ngf3 {[%emt 0:00:37]} Nf6 {[%emt 0:10:15]} 5. exd5 {[%emt 0:03:54]} Qxd5 {[%emt 0:01:07]} 6. Bc4 {[%emt 0:03:25]} Qd6 {[%emt 0:05:06]} 7. O-O {[%emt 0:13:21]} Nc6 {[%emt 0:01:47]} 8. Nb3 {[%emt 0:01:21]} cxd4 {[%emt 0:01:02]} 9. Nbxd4 {[%emt 0:00:03]} Nxd4 {[%emt 0:00:57]} 10. Qxd4 {[%emt 0:03:09]} Qxd4 {[%emt 0:04:12]} 11. Nxd4 {[%emt 0:00:02]} a6 {[%emt 0:00:14]} 12. Re1 {[%emt 0:07:19]} Bd7 {[%emt 0:04:03] C07: French Tarrasch: 3...c5, 4 Ngf3 and 4 exd5 Qxd5.} 13. Bf4 {[%emt 0:05:18]} Bc5 {[%emt 0:09:29]} 14. Rad1 {[%emt 0:05:53]} O-O {[%emt 0:04:00] The position is equal.} 15. c3 {[%emt 0:01:57] [#]} Bxd4 $146 {[%emt 0:05:34]} ({Predecessor:} 15... Rfd8 16. h3 Ba4 17. Bb3 Bxb3 18. Nxb3 Bb6 19. Kf1 Rac8 20. Be5 Kf8 21. Rxd8+ Rxd8 {½-½ (35) Wang,Y (2398)-Zhang,X (2344) Jiangsu Wuxi 2011}) 16. Rxd4 {[%emt 0:01:03]} Bc6 {[%emt 0:00:40]} 17. Red1 {[%emt 0:08:58]} Nd5 {[%emt 0:02:32]} 18. Bc1 {[%emt 0:04:55]} Rfe8 {[%emt 0:07:10]} 19. Bf1 {[%emt 0:04:45]} Nc7 {[%emt 0:05:24]} 20. c4 {[%emt 0:02:56]} e5 {[%emt 0:01:17]} 21. Rd6 {[%emt 0:00:26]} Ne6 {[%emt 0:07:48]} 22. Be3 {[%emt 0:03:29]} Red8 {[%emt 0:02:34]} 23. Rxd8+ {[%emt 0:07:44]} Rxd8 {[%emt 0:00:54]} 24. Rxd8+ {[%emt 0:00:02]} Nxd8 $14 {[%emt 0:00:02][%mdl 4096] Endgame KBB-KBN} 25. b4 {[%emt 0:00:15]} b5 {[%emt 0:05:10]} 26. f3 {[%emt 0:00:46]} f6 {[%emt 0:02:07]} 27. Kf2 {[%emt 0:00:21]} Kf7 {[%emt 0:00:48]} 28. Ke1 {[%emt 0:00:44]} Ke6 {[%emt 0:03:31]} 29. Kd2 {[%emt 0:00:25]} h6 {[%emt 0:04:26]} 30. Kc3 {[%emt 0:00:27]} f5 {[%emt 0:01:16]} 31. Bb6 {[%emt 0:05:51]} (31. f4 $5 {[%cal Rf4e5]}) 31... Kd7 {[%emt 0:02:48]} 32. Bxd8 Kxd8 {[%emt 0:00:01] KB-KB} 33. Bd3 {[%emt 0:08:25]} g6 {[%emt 0:00:53]} 34. h4 {[%emt 0:01:08][%cal Oh4h5]} Ke7 {[%emt 0:02:37]} 35. h5 {[%emt 0:00:45]} e4 {[%emt 0:00:29]} 36. fxe4 {[%emt 0:00:12]} fxe4 {[%emt 0:01:04]} 37. Be2 {[%emt 0:00:01]} gxh5 {[%emt 0:02:40]} 38. Bxh5 {[%emt 0:02:18]} Kf6 {[%emt 0:02:21]} 39. cxb5 Bxb5 {[%emt 0:01:32] And now ...Kg5 would win.} 40. Kd4 {[%emt 0:01:48]} Kf5 $2 {[%emt 0:00:50][%mdl 8192] [#] White leaves nothing to chance now.} (40... Kg5 $11 41. Bd1 Kf4) 41. g3 $1 $18 {[%emt 0:33:45]} Bd3 {[%emt 0:06:45]} 42. Bd1 {[%emt 0:00:00] aiming for a4.} Kg5 {[%emt 0:05:37]} 43. Ke3 $2 {[%emt 0:00:00]} ({Only move:} 43. a3 $18 {a4 is the strong threat.} Kf6 44. Bg4) 43... Bc4 $2 {[%emt 0:05:08][%mdl 8192]} (43... Kf5 $1 $14) 44. a4 {[%emt 0:00:00] Black must now prevent Be2.} Bd5 {[%emt 0:00:15]} 45. Be2 {[%emt 0:00:00]} Bb7 {[%emt 0:00:28]} 46. Kd4 {[%emt 0:00:00]} (46. b5 axb5 47. axb5 Kf6 $18) 46... h5 $2 {[%emt 0:02:37] [#]} (46... Kf6 47. b5 axb5 48. Bxb5 (48. axb5 Ke7 $16) 48... Kf5) 47. Ke5 {[%emt 0:00:00]} h4 {[%emt 0:04:23]} 48. gxh4+ {[%emt 0:00:00]} Kxh4 {[%emt 0:00:05]} 49. Kf4 {[%emt 0:00:00] White mates.} Bc6 {[%emt 0:04:50]} 50. a5 {[%emt 0:00:00]} Bb7 {[%emt 0:00:18]} 51. Bg4 {[%emt 0:00:00]} Bc6 {[%emt 0:03:24]} 52. Bf5 {[%emt 0:00:00]} e3 {[%emt 0:00:36]} 53. Kxe3 {[%emt 0:00:00]} Kg5 {[%emt 0:00:15]} 54. Bd3 {[%emt 0:00:00]} Bb7 {[%emt 0:00:24]} 55. Kd4 {[%emt 0:00:00] Weighted Error Value: White=0.21 (precise) /Black=0.52} 1-0

[Event "SVK ECo-C Extraliga 2021-22"]
[Site "Slovakia"]
[Date "2022.06.10"]
[Round "9.9"]
[White "Plat, Vojtech"]
[Black "Druska Juraj"]
[Result "1-0"]
[ECO "C01"]
[WhiteElo "2547"]
[BlackElo "2523"]
[Annotator "TA"]
[PlyCount "91"]
[EventDate "2021.10.21"]
[EventType "team-tourn"]
[EventCountry "SVK"]
[SourceTitle "playchess.com"]
[Source "ChessBase"]
[SourceQuality "1"]
[TimeControl "40/5400+30:1800+30"]

{[%evp 15,91,0,-11,-13,5,0,0,0,0,0,0,0,0,0,8,10,29,0,0,-42,-22,-41,-20,-120,-72,-70,0,-12,0,-6,-7,-10,0,-24,-32,-19,91,92,83,79,108,95,97,89,137,143,141,136,158,158,184,192,237,234,277,277,346,339,408,378,530,510,539,531,630,628,691,700,775,771,5409,3975,2967,2742,7081,6314,2192,1853]} 1. e4 {[%emt 0:00:06]} e6 {[%emt 0:05:45]} 2. d4 {[%emt 0:00:09]} d5 {[%emt 0:00:07]} 3. exd5 {[%emt 0:00:08]} exd5 {[%emt 0:00:06]} 4. Bd3 {[%emt 0:00:05]} c5 {[%emt 0:03:04]} 5. Qe2+ {[%emt 0:00:42]} Be7 {[%emt 0:08:21]} 6. dxc5 {[%emt 0:02:39]} Nf6 {[%emt 0:00:09]} 7. Nf3 {[%emt 0:10:11]} O-O {[%emt 0:00:16]} 8. O-O {[%emt 0:00:41]} Bxc5 {[%emt 0:04:33]} 9. Bg5 {[%emt 0:00:07] C01: French: Exchange Variation.} Bg4 {[%emt 0:02:08]} (9... h6 $5 {[%cal Rh6g5]} 10. Bxf6 Qxf6 $11) 10. h3 {[%emt 0:07:31]} Bh5 {[%emt 0:00:23]} 11. g4 {[%emt 0:05:10] The position is equal.} Bg6 {[%emt 0:00:27]} 12. Bxg6 {[%emt 0:01:52]} hxg6 {[%emt 0:32:50]} 13. Nc3 {[%emt 0:02:31] [#]} Nc6 $146 {[%emt 0:01:59]} ({Predecessor:} 13... Qd6 14. Qe5 Qxe5 15. Nxe5 Bd4 16. Rfe1 Bxc3 17. bxc3 Ne4 18. Bc1 Nxc3 19. Nf3 Nc6 {0-1 (71) Bauch,S (1930)-Karmainski,A (2102) Ruhrgebiet 2017}) 14. Rad1 $1 {[%emt 0:09:06][%cal Od1d5]} Qd6 $132 {[%emt 0:11:59][%mdl 2048] Black is not keeping still} 15. Kg2 {[%emt 0:03:57] Prevents Qg3+. Bxf6 is the strong threat.} Rfe8 {[%emt 0:00:55]} 16. Qb5 {[%emt 0:03:10]} a6 {[%emt 0:02:53]} 17. Qb3 {[%emt 0:06:18][%cal Rc3d5]} (17. Qxb7 $2 Na5 18. Bf4 Qxf4 $19) 17... d4 {[%emt 0:00:12]} 18. Bxf6 {[%emt 0:03:49]} ({Wrong is} 18. Qxb7 $2 Na5 19. Nb5 axb5 20. Qxb5 Reb8 $19) 18... gxf6 {[%emt 0:02:16]} 19. Nb1 {[%emt 0:00:15] [#]} (19. Qd5 $11 {remains equal.}) 19... b5 {[%emt 0:03:10]} ({Better is} 19... Nd8 $1 {[%cal Rd8e6] Strongly threatening ...Ne6.} 20. Nc3 Ne6) 20. Nbd2 $17 {[%emt 0:01:39]} Re2 {[%emt 0:01:07]} (20... Nb4 $15 21. Rfe1 Qc6) 21. Rfe1 {[%emt 0:03:41]} Rae8 {[%emt 0:00:10]} 22. Rxe2 {[%emt 0:02:16]} Rxe2 {[%emt 0:00:07]} 23. Qd3 {[%emt 0:02:04]} Qe7 {[%emt 0:04:09]} 24. Qxe2 {[%emt 0:02:58]} Qxe2 {[%emt 0:00:02]} 25. Re1 {[%emt 0:00:03] [#]} d3 {[%emt 0:10:10]} (25... Qe6 $1 $11 26. Rxe6 fxe6) 26. Rxe2 $16 {[%emt 0:00:04] White stays focused until the end.} dxe2 {[%emt 0:00:02][%mdl 4096] Endgame KBN-KNN} 27. Ne1 {[%emt 0:02:08]} b4 {[%emt 0:00:40]} 28. c3 {[%emt 0:06:41] Against Bd4} bxc3 {[%emt 0:01:16]} 29. bxc3 {[%emt 0:00:04]} Ne5 {[%emt 0:03:10]} (29... Bf8 $142) 30. Ne4 {[%emt 0:01:40][%csl LRc5,LRf6]} Be7 {[%emt 0:00:17]} 31. Ng3 {[%emt 0:00:05]} Nc4 {[%emt 0:02:20]} 32. Kf3 {[%emt 0:02:33]} ({Don't do} 32. Nxe2 Kg7 33. Nc2 Bc5 $16) 32... Bc5 {[%emt 0:00:53]} 33. Kxe2 {[%emt 0:01:46]} Nd6 {[%emt 0:00:23]} 34. Nd3 {[%emt 0:00:05]} Bb6 {[%emt 0:00:07]} 35. Nb4 {[%emt 0:00:42]} Kg7 {[%emt 0:00:58]} 36. Nxa6 {[%emt 0:00:47]} Nb5 {[%emt 0:00:30]} 37. Ne4 {[%emt 0:00:04]} f5 {[%emt 0:00:05]} (37... Ba5 $142 38. c4 Na7) 38. gxf5 $18 {[%emt 0:00:03] White is clearly winning.} gxf5 {[%emt 0:00:03]} 39. a4 {[%emt 0:00:12][%cal Ba2a4,Ba4a5][%mdl 32]} Na3 {[%emt 0:01:19]} 40. Nd2 {[%emt 0:02:28]} Kf6 {[%emt 0:00:16]} 41. Nb4 {[%emt 0:30:08]} Ke5 {[%emt 0:02:18] Prevents Nd5.} 42. a5 {[%emt 0:00:00]} Bc5 {[%emt 0:03:57]} 43. Nd3+ {[%emt 0:00:00]} Kd6 {[%emt 0:00:05]} 44. Nxc5 {[%emt 0:00:00][%cal Oh3h4] And now h4! would win.} Kxc5 {[%emt 0:00:04]} 45. h4 {[%emt 0:00:00] Threatening mate with h5.} Nb5 {[%emt 0:00:04]} 46. Kd3 {[%emt 0:00:00] Weighted Error Value: White=0.09 (flawless) /Black=0.36} 1-0

[Event "SVK ECo-C Extraliga 2021-22"]
[Site "Slovakia"]
[Date "2022.06.10"]
[Round "9.10"]
[White "Zwardon, Vojtech"]
[Black "Piesik Piotr"]
[Result "0-1"]
[ECO "D10"]
[WhiteElo "2482"]
[BlackElo "2432"]
[Annotator "TA"]
[PlyCount "76"]
[EventDate "2021.10.21"]
[EventType "team-tourn"]
[EventCountry "SVK"]
[SourceTitle "playchess.com"]
[Source "ChessBase"]
[SourceQuality "1"]
[TimeControl "40/5400+30:1800+30"]

{[%evp 10,76,29,25,53,53,56,43,45,40,30,38,94,85,175,162,164,154,158,158,162,143,258,263,267,263,264,264,256,246,247,231,229,-14,-19,-13,-10,-45,-46,-53,-40,-47,-52,-56,-56,-80,-84,-92,-77,-92,-84,-92,-92,-92,-92,-92,-90,-104,-97,-109,-94,-106,-81,-107,-106,-116,-96,-592,-585]} 1. c4 {[%emt 0:04:49]} c6 {[%emt 0:00:36]} 2. Nc3 {[%emt 0:00:10]} d5 {[%emt 0:00:11]} 3. d4 {[%emt 0:00:15]} Nf6 {[%emt 0:00:07]} 4. cxd5 {[%emt 0:00:03]} cxd5 {[%emt 0:00:08]} 5. Bf4 {[%emt 0:00:02]} Qb6 {[%emt 0:01:22]} 6. e3 {[%emt 0:04:15]} Qxb2 {[%emt 0:02:10] D10: Slav Defence: 3 cxd5 (without early Nf3) and 3 Nc3.} 7. Bb5+ $1 {[%emt 0:01:52]} Bd7 {[%emt 0:00:02]} 8. Bxd7+ $1 {[%emt 0:00:42]} (8. Qc1 Qxc1+ 9. Rxc1 e6 $15) 8... Nbxd7 {[%emt 0:00:02] White is slightly better.} ({Not} 8... Nfxd7 9. Nge2 (9. Nxd5 Na6 $14) 9... Qb6 10. Nxd5 Qa5+ 11. Nec3 $16) 9. Nge2 {[%emt 0:00:24] Threatens to win with 0-0.} Qa3 $1 {[%emt 0:01:19]} 10. Rb1 {[%emt 0:01:32][%cal Ba1b1,Bb1b7,Bb7a7][%mdl 32]} Rc8 {[%emt 0:07:43]} (10... b6 $1 $14) 11. O-O $36 {[%emt 0:00:20][%mdl 2048] White has strong initiative.} a6 {[%emt 0:10:04]} (11... Qa6 $16 {was worth a try.}) 12. Rxb7 $18 {[%emt 0:01:04]} e6 {[%emt 0:00:06]} (12... Rxc3 $2 13. Nxc3 Qxc3 14. Rc7 Qxc7 15. Bxc7 $18) 13. Ra7 $1 {[%emt 0:01:16]} Bb4 {[%emt 0:06:41]} 14. Nb5 {[%emt 0:02:08]} Qxa2 {[%emt 0:01:27] [#]} 15. Nc7+ $146 {[%emt 0:05:19]} ({Predecessor:} 15. Nc1 Qc4 16. Nc7+ Kf8 17. Nxa6 Kg8 18. Nd3 Bf8 19. Qb1 Qa4 20. Be5 Qc6 21. Nb8 Nxb8 {1-0 (48) Sargent,J (2212)-Sutton,A (2176) ICCF email 2018}) 15... Rxc7 {[%emt 0:12:26]} (15... Ke7 $16) 16. Bxc7 {[%emt 0:02:21]} ({Don't do} 16. Rxc7 O-O 17. Nc1 Qa3 $18) 16... O-O {[%emt 0:00:31]} 17. Qd3 {[%emt 0:00:14]} a5 {[%emt 0:07:36]} 18. Rb1 {[%emt 0:01:32] Strongly threatening Rxb4.} Qa4 {[%emt 0:01:24]} 19. h3 {[%emt 0:01:46]} Ne4 {[%emt 0:01:25] [#]} 20. Bxa5 $1 {[%emt 0:00:51][%mdl 512]} Bxa5 {[%emt 0:00:05] [#]} 21. Qb5 {[%emt 0:00:05]} ({White has to play} 21. Qd1 $1 $18 {[%cal Rd1a4]} Qxd1+ 22. Rxd1) 21... Qxb5 $11 {[%emt 0:00:44]} 22. Rxb5 {[%emt 0:00:03] [#]} Be1 {[%emt 0:00:06]} 23. f3 {[%emt 0:00:27]} (23. Rxd7 Bxf2+) 23... Nef6 {[%emt 0:04:37]} 24. Kf1 {[%emt 0:10:29]} Bd2 {[%emt 0:00:17]} 25. Kf2 {[%emt 0:00:10] Black must now prevent Rb2.} Rb8 $1 {[%emt 0:01:07]} 26. Rxb8+ {[%emt 0:01:26]} Nxb8 {[%emt 0:00:06]} 27. Rb7 {[%emt 0:02:44]} Nfd7 {[%emt 0:02:12]} 28. Nf4 {[%emt 0:01:56]} Kf8 {[%emt 0:00:21]} 29. Nd3 {[%emt 0:00:40]} Ba5 {[%emt 0:03:26]} 30. Nc5 {[%emt 0:01:27]} Ke7 {[%emt 0:00:15]} 31. Ke2 {[%emt 0:03:10]} Bb6 {[%emt 0:01:32]} 32. Na4 {[%emt 0:00:08] [#]} Bd8 {[%emt 0:00:21]} 33. e4 {[%emt 0:01:29]} Kd6 {[%emt 0:08:38]} 34. Kd3 {[%emt 0:01:45]} Kc6 {[%emt 0:04:03]} 35. Rb1 {[%emt 0:01:33]} Be7 {[%emt 0:01:58]} 36. Nc3 {[%emt 0:02:43]} Na6 {[%emt 0:04:41]} 37. Rc1 {[%emt 0:03:33]} Nb4+ {[%emt 0:04:21]} 38. Ke3 $2 {[%emt 0:00:17][%mdl 8192]} (38. Ke2 $17 {was the crucial defense.} Kb7 39. Rb1) 38... Bg5+ {[%emt 0:00:16] What a bad dream for White.  Weighted Error Value: White=0.30/Black=0.11 (very precise)} 0-1